Workbook

Sheet 1-3 ГОДА
A1: Меню на 06.02.2026
A2: МОУ детский сад № 320 Ежеденевное 20-ти дневное меню (Зима-Осень) для детей дошкольного возраста 1-3 лет, 12 часового режима функционирования
A3: Прием пищи, наименование блюда | B3: Масса порции | C3: Пищевые вещества | F3: Энергети-ческая ценность, ккал
C4: Белки, г | D4: Жиры, г | E4: Углеводы, г
A5: Завтрак
A6: КАША ЖИДКАЯ (ПШЕНИЧНАЯ) ТКК №105 | B6: 150 | C6: 7.0 | D6: 3.5 | E6: 29.1 | F6: 175.1
A7: КОФЕЙНЫЙ НАПИТОК С МОЛОКОМ № 395 | B7: 160 | C7: 2.4 | D7: 1.9 | E7: 12.2 | F7: 76.1
A8: БАТОН | B8: 40 | C8: 3.0 | D8: 1.2 | E8: 20.6 | F8: 104.8
A9: СЫР (ПОРЦИЯМИ) № 7 | B9: 5 | C9: 1.2 | D9: 1.5 | E9: 0.0 | F9: 17.7
A10: ИТОГО ЗА ЗАВТРАК | B10: 355 | C10: =SUM(C6:C9) -> 13.6 | D10: =SUM(D6:D9) -> 8.1 | E10: =SUM(E6:E9) -> 61.9 | F10: =SUM(F6:F9) -> 373.7
A11: II Завтрак
A12: ФРУКТЫ СВЕЖИЕ (ЯБЛОКО) №368 | B12: 200 | C12: 0.8 | D12: 0.8 | E12: 19.0 | F12: 91.2
A13: ИТОГО ЗА 2-й ЗАВТРАК | B13: =SUM(B12) -> 200 | C13: =SUM(C12) -> 0.8 | D13: =SUM(D12) -> 0.8 | E13: =SUM(E12) -> 19.0 | F13: 91.2
A14: Обед
A15: ИКРА КАБАЧКОВАЯ КОНСЕРВИРОВАННАЯ | B15: 30 | C15: 0.6 | D15: 2.7 | E15: 2.3 | F15: 35.7
A16: БОРЩ С КАПУСТОЙ И КАРТОФЕЛЕМ НА МЯСО-КОСТНОМ БУЛЬОНЕ ТТК №28 | B16: 150 | C16: 1.5 | D16: 3.0 | E16: 7.1 | F16: 62.4
A17: КОТЛЕТЫ, БИТОЧКИ, ШНИЦЕЛИ РУБЛЕННЫЕ ТТК №61 | B17: 50 | C17: 6.3 | D17: 8.5 | E17: 15.1 | F17: 145.0
A18: МАКАРОННЫЕ ИЗДЕЛИЯ ОТВАРНЫЕ С МАСЛОМ №205 | B18: 110 | C18: 4.1 | D18: 4.4 | E18: 26.3 | F18: 166.1
A19: КИСЕЛЬ ИЗ ПОВИДЛА, ДЖЕМА, ВАРЕНЬЯ №383 | B19: 150 | C19: 0.1 | D19: 0.0 | E19: 21.1 | F19: 84.8
A20: ХЛЕБ ПЕКЛЕВАННЫЙ | B20: 20 | C20: 1.3 | D20: 0.2 | E20: 8.5 | F20: 40.8
A21: ХЛЕБ ПШЕНИЧНЫЙ | B21: 25 | C21: 1.9 | D21: 0.2 | E21: 12.5 | F21: 59.2
A22: ИТОГО ЗА ОБЕД | B22: 535 | C22: 15.8 | D22: 19.0 | E22: 92.9 | F22: 593.96
A23: Уплотненный полдник
A24: ПОМИДОРЫ СВЕЖИЕ | B24: 40 | C24: 0.4 | D24: 0.0 | E24: 0.9 | F24: 5.5
A25: ФРИКАДЕЛЬКИ ВКУСНЯШКА С СОУСОМ СМЕТАННЫМ, ТТК №32/№354 | B25: 100/30 | C25: 8.5 | D25: 9.7 | E25: 15.9 | F25: 201.4
A26: ЧАЙ С САХАРОМ, ВАРЕНЬЕМ, ДЖЕМОМ, МЕДОМ, ПОВИДЛОМ №392 | B26: 180/10 | C26: 0.1 | D26: 0.0 | E26: 9.8 | F26: 39.4
A27: ХЛЕБ ПШЕНИЧНЫЙ | B27: 20 | C27: 1.5 | D27: 0.1 | E27: 9.7 | F27: 46.0
A28: ПЕЧЕНЬЕ | B28: 20 | C28: 1.5 | D28: 2.0 | E28: 14.9 | F28: 83.4
A29: ИТОГО ЗА УПЛОТНЕННЫЙ ПОЛДНИК | B29: 400 | C29: =SUM(C24:C28) -> 12.0 | D29: =SUM(D24:D28) -> 11.8 | E29: 51.2 | F29: 375.7
A30: Всего за день: | C30: 42.2 | D30: 39.7 | E30: 225.0 | F30: =SUM(F29+F22+F13+F10) -> 1,434.6

Sheet 3-7 ЛЕТ
A1: Меню на 06.02.2026
A2: МОУ детский сад № 320 Ежеденевное 20-ти дневное меню (Зима-Осень) для детей дошкольного возраста 3-7 лет, 12 часового режима функционирования
A3: Прием пищи, наименование блюда | B3: Масса порции | C3: Пищевые вещества | F3: Энергети-ческая ценность, ккал
C4: Белки, г | D4: Жиры, г | E4: Углеводы, г
A5: Завтрак
A6: КАША ЖИДКАЯ (ПШЕНИЧНАЯ) ТКК №105 | B6: 180 | C6: 8.3 | D6: 4.2 | E6: 35.7 | F6: 213.4
A7: КОФЕЙНЫЙ НАПИТОК С МОЛОКОМ № 395 | B7: 200 | C7: 3.1 | D7: 2.4 | E7: 17.1 | F7: 103.1
A8: БАТОН | B8: 50 | C8: 3.8 | D8: 1.5 | E8: 25.7 | F8: 131.0
A9: ИТОГО ЗА ЗАВТРАК | B9: 430 | C9: =SUM(C6:C8) -> 15.2 | D9: =SUM(D6:D8) -> 8.1 | E9: =SUM(E6:E8) -> 78.5 | F9: =SUM(F6:F8) -> 447.5
A10: II Завтрак
A11: ФРУКТЫ СВЕЖИЕ ( ЯБЛОКО) №368 | B11: 200 | C11: 0.8 | D11: 0.8 | E11: 19.0 | F11: 91.2
A12: ИТОГО ЗА 2-й ЗАВТРАК | B12: =SUM(B11) -> 200 | C12: =SUM(C11) -> 0.8 | D12: =SUM(D11) -> 0.8 | E12: =SUM(E11) -> 19.0 | F12: 91.2
A13: Обед
A14: ИКРА КАБАЧКОВАЯ КОНСЕРВИРОВАННАЯ | B14: 50 | C14: 1 | D14: 4.5 | E14: 3.9 | F14: 59.5
A15: БОРЩ С КАПУСТОЙ И КАРТОФЕЛЕМ НА МЕСНО-КОСТОМ БУЛЬОНЕ ТТК №28 | B15: 180 | C15: 2.0 | D15: 3.7 | E15: 8.8 | F15: 78.5
A16: КОТЛЕТЫ, БИТОЧКИ, ШНИЦЕЛИ РУБЛЕННЫЕ ТТК №61 | B16: 70 | C16: 11.6 | D16: 46,068.0 | E16: 11.0 | F16: 234.5
A17: МАКАРОННЫЕ ИЗДЕЛИЯ ОТВАРНЫЕ С МАСЛОМ №205 | B17: 130 | C17: 4.9 | D17: 4.4 | E17: 31.1 | F17: 188.4
A18: КИСЕЛЬ ИЗ ПОВИДЛА, ДЖЕМА, ВАРЕНЬЯ №383 | B18: 180 | C18: 0.1 | D18: 0.0 | E18: 25.7 | F18: 102.6
A19: ХЛЕБ ПЕКЛЕВАННЫЙ | B19: 40 | C19: 2.6 | D19: 0.4 | E19: 17.0 | F19: 81.6
A20: ХЛЕБ ПШЕНИЧНЫЙ | B20: 30 | C20: 2.3 | D20: 0.2 | E20: 15.1 | F20: 71.0
A21: ИТОГО ЗА ОБЕД | B21: 680 | C21: 24.5 | D21: 28.4 | E21: 112.6 | F21: 816.1
A22: Уплотненный полдник
A23: ПОМИДОРЫ СОЛЕНЫЕ | B23: 50 | C23: 0.6 | D23: 0.0 | E23: 1.2 | F23: 6.8
A24: ФРИКАДЕЛЬКИ ВКУСНЯШКА С СОУСОМ СМЕТАННЫМ С ТОМАТОМ, ТТК №32/№354 | B24: 140/50 | C24: 12.2 | D24: 13.8 | E24: 23.5 | F24: 290.3
A25: ЧАЙ С САХАРОМ, ВАРЕНЬЕМ, ДЖЕМОМ, МЕДОМ, ПОВИДЛОМ №392 | B25: 190/10 | C25: 0.1 | D25: 0.0 | E25: 9.8 | F25: 39.4
A26: ХЛЕБ ПШЕНИЧНЫЙ | B26: 30 | C26: 2.3 | D26: 0.2 | E26: 15.1 | F26: 71.0
A27: ИТОГО ЗА УПЛОТНЕНЫЙ ПОЛДНИК | B27: 470 | C27: =SUM(C23:C26) -> 15.2 | D27: =SUM(D23:D26) -> 14.0 | E27: 49.6 | F27: 407.5
A28: Всего за день: | C28: 55.7 | D28: 51.3 | E28: 259.7 | F28: =SUM(F27+F21+F12+F9) -> 1,762.3

Sheet Лист3
